bitfinex-derivatives/quotes_SOLF0:USTF0_20240904
["timestamp","ask_amount","ask_price","bid_price","bid_amount"]
[1725440143923,1.09211861,130.18,130.16,9.52550827]
[1725440144123,3.89153392,130.19,130.16,9.52550827]
[1725440144330,1.0921182,130.18,130.16,9.52550827]
[1725440147230,7.64593568,130.19,130.16,9.52550827]
[1725440149530,3.89153392,130.19,130.16,9.52550827]
[1725440150040,7.72616002,130.19,130.16,9.52550827]
[1725440150338,10.56291313,130.18,130.16,0.05550827]
[1725440150530,9.47,130.18,130.16,0.05550827]
[1725440150727,3.8417,130.17,130.16,0.05550827]
[1725440151231,4.9347231,130.17,130.16,0.05550827]
[1725440151435,3.8417,130.17,130.16,0.05550827]
[1725440151638,10.56319475,130.17,130.11,3.8433]
[1725440151833,1.09319475,130.16,130.11,13.3133]
[1725440152034,3.8424,130.15,130.12,9.47]
[1725440152736,3.89844028,130.15,130.12,9.52885344]
[1725440153530,3.8426,130.14,130.12,9.52885344]
[1725440154537,3.8426,130.14,130.12,0.05885344]
[1725440154741,3.8428,130.13,130.12,0.05885344]
[1725440161240,3.8428,130.13,130.12,9.52885344]
[1725440165647,3.8427,130.14,130.12,9.52885344]
[1725440168948,3.89844028,130.15,130.12,9.52885344]
[1725440169362,0.05604028,130.15,130.13,9.47]
[1725440172151,9.52604028,130.15,130.12,0.05885344]
[1725440172351,10.56311709,130.14,130.12,0.05885344]
[1725440172562,3.8437,130.11,130.07,13.3146]
[1725440172854,7.69804488,130.11,130.07,13.3146]
[1725440173056,3.8437,130.11,130.07,13.3146]
[1725440173457,0.05883445,130.1,130.08,0.05157034]
[1725440175047,3.90273445,130.1,130.08,0.05157034]
[1725440176060,3.844,130.09,130.08,0.05157034]
[1725440176451,9.47,130.09,130.01,4.3012]
[1725440176655,3.8451,130.06,130.01,17.6174]
[1725440176961,9.47,130.08,130.01,13.7712]
[1725440177155,13.39272979,130.08,130.01,13.7712]
[1725440177350,3.845,130.06,130.01,13.7712]
[1725440177554,0.05630955,130.05,130.02,0.0578696]
[1725440181672,0.05630955,130.05,130.02,9.5278696]
[1725440184162,0.05630955,130.05,130.02,13.3739696]
[1725440186976,3.90150955,130.05,130.02,9.5278696]
[1725440187563,3.90150955,130.05,130.02,13.3739696]
[1725440188176,0.05630955,130.05,130.02,13.3739696]
[1725440193478,0.05630955,130.05,130.03,3.8458]
[1725440204287,0.05630955,130.05,130.02,13.3737696]
[1725440205293,3.90160955,130.05,130.02,3.9037696]
[1725440205991,0.05630955,130.05,130.02,3.9037696]
[1725440207892,3.90150955,130.05,130.02,3.9037696]
[1725440213097,0.05630955,130.05,130.02,0.0578696]
[1725440213990,3.90170955,130.05,130.02,3.9037696]
[1725440215497,0.05630955,130.05,130.03,3.8458]
[1725440216593,60.63325465,130.17,130.03,9.47]
[1725440216792,9.47,130.11,130.04,9.47]
[1725440217194,3.844,130.1,130.06,3.8448]
[1725440217694,0.0542494,130.09,130.07,0.05372949]
[1725440220298,3.8984494,130.09,130.07,0.05372949]
[1725440220497,9.47,130.08,130.07,0.05372949]
[1725440221299,13.3143,130.08,130.07,0.05372949]
[1725440221496,14.40832154,130.08,130.07,0.05372949]
[1725440221699,13.3143,130.08,130.07,0.05372949]
[1725440224104,14.40833202,130.08,130.07,0.05372949]
[1725440226216,13.3143,130.08,130.07,0.05372949]
[1725440226412,14.40811838,130.08,130.07,0.05372949]
[1725440228310,3.8453,130.05,130.01,3.8462]
[1725440228508,17.25485227,130.05,130.01,3.8462]
[1725440228712,13.3153,130.05,130.01,3.8462]
[1725440229216,0.05261457,130.04,130.02,0.05695899]
[1725440229621,3.89811457,130.04,130.02,0.05695899]
[1725440229811,9.52261457,130.04,130.02,0.05695899]
[1725440230612,13.36831457,130.04,130.02,0.05695899]
[1725440231919,0.05261457,130.04,130.03,9.47]
[1725440232611,0.05261457,130.04,130.03,13.3158]
[1725440232814,0.05261457,130.04,130.03,3.8458]
[1725440236229,0.05261457,130.04,130.03,13.3158]
[1725440236530,3.8445,130.08,130.04,3.8454]
[1725440237329,0.05855024,130.07,130.05,0.04936914]
[1725440241930,0.05855024,130.07,130.05,3.89456914]
[1725440242929,0.05855024,130.07,130.06,13.3149]
[1725440243234,1.09382013,130.12,130.06,9.47]
[1725440243435,9.47,130.13,130.07,9.47]
[1725440243622,5.24144067,130.14,130.09,9.47]
[1725440243822,7.67404067,130.14,130.1,9.47]
[1725440244029,3.8428,130.14,130.1,9.47]
[1725440244228,0.04934611,130.13,130.11,0.05690596]
[1725440247133,0.04934611,130.13,130.11,3.90030596]
[1725440248135,0.04934611,130.13,130.11,13.37020596]
[1725440248336,0.04934611,130.13,130.11,9.52690596]
[1725440248736,0.04934611,130.13,130.12,3.8431]
[1725440250039,18.75202913,130.22,130.12,9.47]
[1725440250245,28.18716937,130.28,130.12,9.47]
[1725440250246,10.56334598,130.21,130.15,9.47]
[1725440250536,14.40434598,130.2,130.15,3.8422]
[1725440250742,1.09334598,130.19,130.15,3.8422]
[1725440251135,0.05421797,130.18,130.16,0.04860323]
[1725440254945,0.05421797,130.18,130.16,3.89050323]
[1725440260751,0.05421797,130.18,130.17,3.8417]
[1725440260949,0.05421797,130.18,130.17,13.3117]
[1725440262356,3.87655346,130.23,130.19,3.8411]
[1725440262357,7.71655346,130.23,130.19,3.8411]
[1725440262652,1.09254656,130.22,130.2,9.47]
[1725440262950,3.8398,130.24,130.2,9.47]
[1725440263251,1.09252112,130.23,130.2,9.47]
[1725440263448,0.05298066,130.23,130.2,9.52660719]
[1725440263746,0.05298066,130.23,130.2,13.36710719]
[1725440264146,0.05298066,130.23,130.2,9.52660719]
[1725440264946,0.05298066,130.23,130.2,0.05660719]
[1725440265552,0.05298066,130.23,130.2,3.89730719]
[1725440267150,0.05298066,130.23,130.21,3.8403]
[1725440267549,0.05298066,130.23,130.2,0.05660719]
[1725440268152,3.89298066,130.23,130.2,0.05660719]
[1725440268549,0.05298066,130.23,130.2,0.05660719]
[1725440268751,3.89288066,130.23,130.2,0.05660719]
[1725440270358,9.52298066,130.23,130.2,0.05660719]
[1725440271053,3.8403,130.22,130.2,0.05660719]
[1725440276271,9.52298066,130.23,130.2,0.05660719]
[1725440276961,3.8405,130.22,130.2,0.05660719]
[1725440278768,9.52298066,130.23,130.2,0.05660719]
[1725440278769,0.05298066,130.23,130.21,9.47]
[1725440281055,0.05298066,130.23,130.2,3.89720719]
[1725440281258,0.05298066,130.23,130.2,13.36720719]
[1725440282659,3.89288066,130.23,130.2,9.52660719]
[1725440282864,0.05298066,130.23,130.2,9.52660719]
[1725440283963,0.05298066,130.23,130.2,13.36730719]
[1725440286982,0.05298066,130.23,130.2,0.05660719]
[1725440287481,3.8404,130.22,130.2,0.05660719]
[1725440288081,3.89298066,130.23,130.2,0.05660719]
[1725440289485,3.8405,130.21,130.2,0.05660719]
[1725440289888,13.3105,130.21,130.2,0.05660719]
[1725440290086,47.35,130.21,130.1,105.50722143]
[1725440290383,9.47,130.16,130.1,114.97722143]
[1725440290586,13.34899308,130.16,130.1,114.97722143]
[1725440290886,17.19099308,130.16,130.11,3.8432]
[1725440291187,0.05091488,130.15,130.12,0.05675766]
[1725440292286,0.05091488,130.15,130.12,9.52675766]
[1725440292486,0.05091488,130.15,130.13,9.47]
[1725440292883,0.05091488,130.15,130.13,13.3128]
[1725440293783,0.05091488,130.15,130.14,13.3125]
[1725440295890,0.05091488,130.15,130.13,16.0743]
[1725440296392,0.05091488,130.15,130.12,0.05675766]
[1725440297088,3.8426,130.14,130.12,0.05675766]
[1725440299097,3.89341488,130.15,130.12,0.05675766]
[1725440299588,0.05091488,130.15,130.12,0.05675766]
[1725440300292,9.52091488,130.15,130.12,0.05675766]
[1725440300794,3.8428,130.13,130.12,0.05675766]
[1725440303388,3.8443,130.09,129.97,7.6951]
[1725440303596,9.47,130.1,130.03,9.47]
[1725440303795,13.36307894,130.1,130.03,9.47]
[1725440303995,3.8443,130.08,130.05,3.8451]
[1725440304191,13.36307894,130.1,130.04,9.47]
[1725440304707,3.89962103,130.08,130.06,0.05289676]
[1725440307699,0.05512103,130.08,130.06,3.89769676]
[1725440308308,0.05512103,130.08,130.07,3.8446]
[1725440312713,0.05512103,130.08,130.07,13.3146]
[1725440314209,0.05512103,130.08,130.06,1.47109676]
[1725440314412,0.05512103,130.08,130.06,10.94109676]
[1725440315315,0.05512103,130.08,130.07,3.8446]
[1725440315612,0.05512103,130.08,130.06,1.47109676]
[1725440316013,0.05512103,130.08,130.06,5.31569676]
[1725440316812,0.05512103,130.08,130.06,0.05289676]
[1725440317213,9.52512103,130.08,130.06,0.05289676]
[1725440317512,3.8446,130.07,130.06,0.05289676]
[1725440318413,13.3146,130.07,130.06,0.05289676]
[1725440318613,47.35,130.07,129.99,1.3953]
[1725440318805,9.47,130.01,129.94,2.8349]
[1725440319010,9.47,130.03,129.97,9.47]
[1725440319607,0.05676587,130.01,129.99,0.05232636]
[1725440319815,3.90326587,130.01,129.99,0.05232636]
[1725440324715,0.05676587,130.01,129.99,0.05232636]
[1725440324919,3.87987729,130.03,130.0,23.65]
[1725440325112,227.0,130.09,130.03,3.8456]
[1725440325315,27.54188407,130.1,130.03,3.8456]
[1725440325514,1.09081975,130.09,130.03,3.8456]
[1725440325714,3.8448,130.07,130.03,3.8456]
[1725440326215,0.05888993,130.06,130.04,0.0539925]
[1725440326821,0.05888993,130.06,130.04,3.8994925]
[1725440327021,0.05888993,130.06,130.04,0.0539925]
[1725440327413,0.05888993,130.06,130.05,3.8452]
[1725440328514,0.05888993,130.06,130.04,23.7039925]
[1725440329317,0.05888993,130.06,130.04,0.0539925]
[1725440330027,0.05888993,130.06,130.04,3.8991925]
[1725440330226,0.05888993,130.06,130.04,0.0539925]
[1725440331421,0.05888993,130.06,130.05,3.8452]
[1725440333729,0.05888993,130.06,130.04,3.8993925]
[1725440334230,0.05888993,130.06,130.04,0.0539925]
[1725440334932,0.05888993,130.06,130.05,3.8452]
[1725440344634,0.05888993,130.06,130.05,13.2952]
[1725440350449,0.05888993,130.06,130.05,3.8452]
[1725440359048,0.05888993,130.06,130.05,13.2952]
[1725440360053,0.05888993,130.06,130.05,3.8452]
[1725440360353,0.05888993,130.06,130.05,13.2952]
[1725440361749,0.05888993,130.06,130.05,3.8452]
[1725440361955,9.50888993,130.06,130.04,0.0539925]
[1725440362344,9.50888993,130.06,129.98,9.45]
[1725440362544,9.45,130.04,129.98,9.45]
[1725440362859,9.45,130.04,129.97,124.27840673]
[1725440363047,3.8461,130.02,129.98,3.8471]
[1725440363248,0.05877207,130.01,129.99,0.05715108]
[1725440364948,0.05877207,130.01,129.96,2.7062]
[1725440364949,23.64,130.0,129.9,23.64]
[1725440365248,23.64,130.0,129.9,26.4492]
[1725440365447,23.64,130.0,129.92,3.8489]
[1725440365448,3.8479,129.96,129.92,3.8489]
[1725440366052,0.05382844,129.95,129.93,3.90101785]
[1725440366254,0.05382844,129.95,129.93,0.05231785]
[1725440367054,0.05382844,129.95,129.94,3.8485]
[1725440367243,0.05382844,129.95,129.94,27.4885]
[1725440368649,0.05382844,129.95,129.94,3.8485]
[1725440370653,0.05382844,129.95,129.94,27.4885]
[1725440373964,0.05382844,129.95,129.94,3.8485]
[1725440376962,3.91295654,130.02,129.93,48.6435]
[1725440377163,23.64,130.04,129.96,23.64]
[1725440377362,3.8467,130.0,129.97,3.8474]
[1725440377961,3.90581154,130.0,129.97,3.90298074]
[1725440384771,0.05911154,130.0,129.98,3.8471]
[1725440386167,0.05911154,130.0,129.99,3.847]
[1725440393776,0.05911154,130.0,129.98,3.8471]
[1725440394271,0.05911154,130.0,129.99,3.847]
[1725440394475,0.05911154,130.0,129.99,13.307]
[1725440396079,0.05911154,130.0,129.97,0.05558074]
[1725440396685,3.90591154,130.0,129.97,3.90298074]
[1725440397289,9.46,129.98,129.97,0.05558074]
[1725440398385,13.3073,129.98,129.97,0.05558074]
[1725440399891,3.8473,129.98,129.97,0.05558074]
[1725440400894,3.8485,129.94,129.89,23.66]
[1725440401390,3.8485,129.94,129.9,3.8494]
[1725440401790,0.05674956,129.93,129.91,0.05048229]
[1725440401991,3.90554956,129.93,129.91,0.05048229]
[1725440402296,0.05674956,129.93,129.91,0.05048229]
[1725440402592,3.849,129.92,129.91,0.05048229]
[1725440402794,23.66,129.93,129.83,27.51189792]
[1725440402986,3.85,129.89,129.83,23.66]
[1725440403298,3.85,129.89,129.83,27.54153975]
[1725440403686,3.85,129.89,129.85,0.05100293]
[1725440403687,0.0543758,129.87,129.85,0.05100293]
[1725440404393,0.0543758,129.87,129.86,3.8507]
[1725440405096,0.0543758,129.87,129.85,3.90200293]
[1725440405288,0.0543758,129.87,129.85,0.05100293]
[1725440405901,0.0543758,129.87,129.85,23.71100293]
[1725440406385,3.8489,129.93,129.9,3.8496]
[1725440406693,1.3738,129.98,129.9,23.66]
[1725440406889,3.8481,129.96,129.93,27.5086]
[1725440407598,3.90687806,129.96,129.93,27.56032026]
[1725440409588,0.05877806,129.96,129.94,3.8484]
[1725440409789,0.05877806,129.96,129.93,23.71172026]
[1725440409990,0.05877806,129.96,129.94,3.8482]
[1725440410187,0.05877806,129.96,129.93,23.71172026]
[1725440411196,0.05877806,129.96,129.95,27.5082]
[1725440412103,0.05877806,129.96,129.93,0.05172026]
[1725440413395,3.90677806,129.96,129.93,3.90032026]
[1725440415914,0.05877806,129.96,129.93,0.05172026]
[1725440416202,3.94886838,129.96,129.93,0.05172026]
[1725440416409,0.05877806,129.96,129.93,0.05172026]
[1725440416596,3.8485,129.94,129.93,0.05172026]
[1725440421008,3.8484,129.95,129.93,0.05172026]
[1725440422602,3.8485,129.94,129.93,0.05172026]
[1725440426105,23.66,129.94,129.74,11.5632]
[1725440426312,23.66,129.92,129.84,23.66]
[1725440426701,23.66,129.92,129.85,3.8509]
[1725440426910,23.66,129.92,129.72,221.74607135]
[1725440427108,1.4138,129.93,129.84,0.04970312]
[1725440427109,23.66,129.89,129.84,0.04970312]
[1725440427309,0.05279397,129.88,129.85,0.05351118]
[1725440428007,3.8508,129.86,129.85,0.05351118]
[1725440428211,7.64816949,129.86,129.85,0.05351118]
[1725440429811,3.852,129.83,129.79,23.66]
[1725440430712,0.05784078,129.82,129.8,0.05848441]
[1725440431916,0.05784078,129.82,129.81,23.66]
[1725440433809,0.05784078,129.82,129.8,0.05848441]
[1725440437121,3.8523,129.81,129.8,0.05848441]
[1725440445114,3.8533,129.78,129.74,23.66]
[1725440445417,23.66,129.83,129.74,27.51883861]
[1725440445625,23.66,129.83,129.74,27.5142]
[1725440445917,3.8534,129.78,129.74,23.66]
[1725440446116,3.80104272,129.78,129.73,23.66]
[1725440446313,0.05286284,129.77,129.75,0.0583592]
[1725440446519,3.8538,129.76,129.75,0.0583592]
[1725440446723,0.05286284,129.77,129.75,0.0583592]
[1725440446918,7.703,129.87,129.76,23.66]
[1725440447113,1.0865985,129.86,129.78,27.5131]
[1725440447420,23.66,129.85,129.77,1.4363]
[1725440447716,23.66,129.83,129.77,1.4363]
[1725440447917,0.05576968,129.81,129.8,23.66]
[1725440448119,27.9009,129.89,129.8,23.66]
[1725440448310,23.66,129.87,129.79,3.8528]
[1725440448511,23.66,129.85,129.83,0.04879007]
[1725440448716,3.8514,129.84,129.83,0.04879007]
[1725440449016,23.66,129.85,129.77,1.4363]
[1725440449216,23.66,129.83,129.74,23.66]
[1725440449417,23.66,129.81,129.72,23.66]
[1725440449711,23.66,129.79,129.7,23.66]
[1725440449912,0.053705,129.76,129.73,0.05062777]
[1725440450117,23.66,129.75,129.58,7.7182]
[1725440450316,2.7198,129.74,129.65,23.66]
[1725440450524,2.7198,129.74,129.67,23.66]
[1725440450819,3.8548,129.73,129.67,23.66]
[1725440451015,23.66,129.76,129.69,23.66]
[1725440451215,23.66,129.76,129.71,0.0514607]
[1725440451216,0.04914886,129.74,129.71,0.0514607]
[1725440451611,3.90374886,129.74,129.71,0.0514607]
[1725440452814,0.04914886,129.74,129.71,0.0514607]
[1725440454422,0.04914886,129.74,129.72,3.855]
[1725440455226,0.04914886,129.74,129.73,3.8547]
[1725440456020,23.66,129.81,129.73,23.66]
[1725440456617,3.8531,129.79,129.75,3.854]
[1725440457024,0.0499566,129.78,129.76,0.05000104]
[1725440458620,7.703,129.86,129.77,23.66]
[1725440458926,3.8516,129.84,129.79,23.66]
[1725440459128,3.8516,129.84,129.79,27.5127]
[1725440459329,3.8516,129.84,129.79,23.66]
[1725440459529,4.1555,129.88,129.79,23.66]
[1725440459719,0.05828717,129.83,129.8,1.37792449]
[1725440459918,7.703,129.91,129.81,23.66]
[1725440460229,1.08735405,129.9,129.83,23.66]
[1725440460529,2.779,129.92,129.83,23.66]
[1725440460724,3.85,129.89,129.84,3.8513]
[1725440460924,2.779,129.92,129.83,23.66]
[1725440461129,0.05116686,129.87,129.85,0.05772575]
[1725440461332,0.05612487,129.87,129.85,0.05772575]
[1725440464022,3.8501,129.89,129.85,23.71772575]
[1725440464527,3.8501,129.89,129.86,1.4453]
[1725440464931,3.8495,129.91,129.87,23.66]
[1725440465235,0.0498312,129.9,129.88,0.05255676]
[1725440465441,0.0575942,129.9,129.88,0.05255676]
[1725440468333,3.9071942,129.9,129.88,0.05255676]
[1725440470141,3.8499,129.89,129.88,0.05255676]
[1725440471531,3.8511,129.86,129.82,5.2303]
[1725440472234,3.8511,129.86,129.81,1.4438]
[1725440472235,23.66,129.87,129.81,1.4438]
[1725440472428,0.04846342,129.85,129.83,0.05111857]
[1725440472740,3.8514,129.84,129.83,0.05111857]
[1725440473436,3.89966342,129.85,129.83,0.05111857]
[1725440474130,3.8514,129.84,129.83,0.05111857]
[1725440474531,3.89966342,129.85,129.83,0.05111857]
[1725440476142,3.8514,129.84,129.83,0.05111857]
[1725440478938,3.8525,129.81,129.77,2.7602]
[1725440479333,3.8525,129.81,129.77,6.6135]
[1725440479530,3.8518,129.83,129.77,2.7602]
[1725440479736,3.8518,129.83,129.77,26.4202]
[1725440480040,0.05414122,129.81,129.79,23.71363629]
[1725440480629,0.05414122,129.81,129.79,27.65847945]
[1725440481031,0.05414122,129.81,129.8,27.5125]
[1725440481536,0.05414122,129.81,129.79,27.56653629]
[1725440481741,0.05414122,129.81,129.79,23.71363629]
[1725440481942,3.90015112,129.88,129.79,23.66]
[1725440482143,3.8514,129.84,129.79,23.66]
[1725440482335,3.87009958,129.88,129.79,27.49619527]
[1725440482530,1.08879398,129.87,129.79,27.49619527]
[1725440482735,3.8513,129.85,129.82,3.852]
[1725440483037,3.90476932,129.85,129.82,3.90161862]
[1725440484645,3.8514,129.84,129.82,0.04961862]
[1725440484936,0.05346932,129.85,129.82,0.04961862]
[1725440485850,3.90476932,129.85,129.82,3.90161862]
[1725440486941,0.05346932,129.85,129.82,0.04961862]
[1725440487538,0.05346932,129.85,129.83,3.8515]
[1725440488544,0.05346932,129.85,129.84,3.8514]
[1725440488847,383.77373369,130.02,129.84,3.8514]
[1725440488848,31.363,129.94,129.84,23.66]
[1725440489042,1.08955408,129.93,129.85,1.3451]
[1725440489249,3.8498,129.9,129.86,3.8507]
[1725440489635,3.91651865,129.95,129.85,1.3451]
[1725440489842,0.05855785,129.91,129.89,0.04984966]
[1725440492448,0.05855785,129.91,129.9,27.5096]
[1725440496142,3.8482,129.95,129.92,3.8489]
[1725440496851,3.8481,129.96,129.92,3.8489]
[1725440497151,0.05917778,129.95,129.93,0.0557912]
[1725440497555,0.05917778,129.95,129.93,3.9044912]
[1725440497739,0.05917778,129.95,129.93,0.0557912]
[1725440499353,0.05917778,129.95,129.94,3.8485]
[1725440499552,0.05917778,129.95,129.93,0.0557912]
[1725440500146,3.8485,129.94,129.93,0.0557912]
[1725440500350,0.05917778,129.95,129.93,0.0557912]
[1725440500547,3.90747778,129.95,129.93,0.0557912]
[1725440500953,0.05917778,129.95,129.93,0.0557912]
[1725440501249,0.05917778,129.95,129.93,3.9043912]
[1725440501550,0.05917778,129.95,129.93,0.0557912]
[1725440501750,0.05917778,129.95,129.94,3.8485]
[1725440502651,0.05917778,129.95,129.94,27.5085]
[1725440504255,0.05917778,129.95,129.94,3.8485]
[1725440508559,0.05917778,129.95,129.93,3.9044912]
[1725440508862,0.05917778,129.95,129.93,0.0557912]
[1725440509059,0.05917778,129.95,129.94,3.8485]
[1725440509866,2.819,130.02,129.93,51.24251142]
[1725440510164,2.819,130.02,129.97,23.66]
[1725440510570,3.8466,130.01,129.97,27.5074]
[1725440510761,3.8466,130.01,129.97,23.66]
[1725440511163,0.0508734,130.0,129.98,0.05806556]
[1725440511762,0.0508734,130.0,129.98,3.90516556]
[1725440513963,0.0508734,130.0,129.98,0.05806556]
[1725440516061,3.847,129.99,129.98,0.05806556]
[1725440516680,3.8976734,130.0,129.98,0.05806556]
[1725440519077,3.847,129.99,129.98,0.05806556]
[1725440520985,3.8976734,130.0,129.98,0.05806556]
[1725440523571,0.0508734,130.0,129.98,3.90516556]
[1725440527983,3.8976734,130.0,129.98,0.05806556]
[1725440528878,0.0508734,130.0,129.99,27.507]
[1725440530579,2.806,130.07,129.99,47.32]
[1725440530784,3.83531866,130.08,130.03,23.66]
[1725440530983,7.67981866,130.08,130.04,3.8454]
[1725440531184,3.8445,130.08,130.04,3.8454]
[1725440531575,3.8445,130.08,130.05,0.05043001]
[1725440531576,0.0588535,130.07,130.05,0.05043001]
[1725440531981,0.0588535,130.07,130.05,3.89553001]
[1725440532685,0.0588535,130.07,130.06,3.8449]
[1725440533275,0.0588535,130.07,130.05,3.89553001]
[1725440534284,0.0588535,130.07,130.06,3.8449]
[1725440535280,0.0588535,130.07,130.05,3.89543001]
[1725440536282,0.0588535,130.07,130.06,3.8449]
[1725440537389,0.0588535,130.07,130.05,23.71043001]
[1725440537589,0.0588535,130.07,130.06,23.66]
[1725440538796,0.0588535,130.07,130.06,27.5049]
[1725440543907,5.14867298,130.14,130.06,23.66]
[1725440544095,1.09002653,130.13,130.09,23.66]
[1725440544296,1.09002653,130.13,130.06,1.3669]
[1725440544498,1.09002653,130.13,130.08,23.66]
[1725440544897,3.89868069,130.12,130.09,3.90074926]
[1725440545203,0.05538069,130.12,130.09,3.90074926]
[1725440546401,0.05538069,130.12,130.1,3.8436]
[1725440547891,0.05538069,130.12,130.1,13.2936]
[1725440548499,0.05538069,130.12,130.1,3.8436]
[1725440548803,0.05538069,130.12,130.09,3.90074926]
[1725440549504,3.89858069,130.12,130.09,3.90074926]
[1725440549800,0.05538069,130.12,130.09,0.05694926]
[1725440550207,3.8436,130.11,130.09,0.05694926]
[1725440555899,0.05538069,130.12,130.1,3.8436]
[1725440556099,1.14594605,130.12,130.1,3.8436]
[1725440558809,4.98914605,130.12,130.09,3.90084926]
[1725440559009,1.09056536,130.11,130.09,0.05694926]
[1725440560415,1.09056536,130.11,130.1,3.8437]
[1725440560913,0.05538069,130.12,130.09,3.90084926]
[1725440561113,1.1463856,130.12,130.09,3.90084926]
[1725440561313,0.05538069,130.12,130.09,3.90084926]
[1725440561504,1.14638001,130.12,130.09,3.90084926]
[1725440561708,1.14638001,130.12,130.09,27.51084926]
[1725440561908,1.14638001,130.12,130.09,3.90084926]
[1725440562615,4.98958001,130.12,130.09,3.90084926]
[1725440562827,0.05538069,130.12,130.09,0.05694926]
[1725440563307,3.89868069,130.12,130.09,0.05694926]
[1725440564715,0.05538069,130.12,130.09,3.90074926]
[1725440565612,0.05538069,130.12,130.1,27.4537]
[1725440568218,3.89848069,130.12,130.1,23.61]
[1725440569908,3.89848069,130.12,130.1,9.45]
[1725440570612,0.05538069,130.12,130.1,9.45]
[1725440572519,0.05538069,130.12,130.1,13.2937]
[1725440573119,0.05538069,130.12,130.11,13.2934]
[1725440577823,4.93214907,130.17,130.11,13.33291304]
[1725440578022,3.8418,130.17,130.15,9.45]
[1725440578829,3.89919051,130.17,130.15,9.49884549]
[1725440579820,3.842,130.16,130.15,0.04884549]
[1725440580124,0.05739051,130.17,130.15,0.04884549]
[1725440580322,3.89919051,130.17,130.15,0.04884549]
[1725440581728,0.05739051,130.17,130.16,9.45]
[1725440582731,0.05739051,130.17,130.16,13.292]
[1725440584937,3.841,130.2,130.17,3.8415]
[1725440585239,3.8406,130.21,130.19,9.45]
[1725440585932,3.89965059,130.21,130.19,9.50700538]
[1725440586328,0.05905059,130.21,130.19,9.50700538]
[1725440586524,19.92791297,130.25,130.2,37.8]
[1725440586722,240.23322153,130.31,130.24,9.45]
[1725440586926,3.8389,130.27,130.24,9.45]
[1725440587131,1.09070413,130.26,130.24,9.45]
[1725440587424,1.09070413,130.26,130.24,13.2896]
[1725440587733,1.09070413,130.26,130.24,13.33982443]
[1725440587734,1.14402069,130.26,130.24,13.33982443]
[1725440588029,0.05331656,130.26,130.24,9.50022443]
[1725440588936,1.14404191,130.26,130.24,9.50022443]
[1725440589132,1.14404191,130.26,130.25,3.8393]
[1725440589337,0.05331656,130.26,130.24,9.50022443]
[1725440589734,0.05331656,130.26,130.25,3.8393]
[1725440592038,0.05331656,130.26,130.24,13.33962443]
[1725440592739,0.05331656,130.26,130.25,9.45]
[1725440595344,0.05331656,130.26,130.25,13.2893]
[1725440601850,1.09199572,130.3,130.26,3.8388]
[1725440602046,1.09199572,130.3,130.28,9.45]
[1725440602243,1.09199572,130.3,130.29,9.45]
[1725440602447,10.8386,130.36,130.29,9.45]
[1725440602654,1.09168445,130.35,130.29,9.45]
[1725440602851,3.8376,130.31,130.29,9.45]
[1725440603045,3.8376,130.31,130.29,9.50813022]
[1725440605258,0.03944297,130.33,130.3,9.45]
[1725440605460,0.03944297,130.33,130.29,0.05813022]
[1725440605756,0.03944297,130.33,130.29,9.50813022]
[1725440605950,3.8377,130.31,130.29,9.50813022]
[1725440606948,3.8373,130.32,130.29,9.50813022]
[1725440607148,3.8373,130.32,130.3,9.45]
[1725440607854,3.87664297,130.33,130.3,9.45]
[1725440608155,0.03944297,130.33,130.3,9.45]
[1725440609041,0.03944297,130.33,130.29,0.05813022]
[1725440609241,1.13097924,130.33,130.29,0.05813022]
[1725440609449,3.8378,130.3,130.29,0.05813022]
[1725440610147,3.8376,130.31,130.29,9.50813022]
[1725440610459,0.03944297,130.33,130.29,9.50813022]
[1725440610647,0.03944297,130.33,130.31,9.45]
[1725440610851,0.03944297,130.33,130.32,9.45]
[1725440611250,7.78757429,130.33,130.32,9.45]
[1725440611446,5.04207471,130.33,130.31,9.45]
[1725440611666,3.95047429,130.33,130.31,9.45]
[1725440611957,3.8375,130.32,130.31,9.45]
[1725440612159,3.95047429,130.33,130.31,9.45]
[1725440612353,7.78757429,130.33,130.31,9.45]
[1725440612550,3.95047429,130.33,130.31,9.45]
[1725440613060,0.03944297,130.33,130.31,9.45]
[1725440613359,7.72971973,130.32,130.31,9.45]